fUSD/lending_fUSD_20250923
["ID","MTS","AMOUNT","RATE_DAILY","PERIOD"]
[387159980,1758599451089,-400.0,0.00019983,2]
[387159981,1758599451098,-154.612855,0.00019983,2]
[387159982,1758599451111,-400.0,0.00019983,2]
[387159983,1758599451120,-424.98,0.00019983,2]
[387159984,1758599451130,-400.0,0.00019983,2]
[387159985,1758599451139,-729.86,0.00019983,2]
[387159986,1758599451148,-400.0,0.00019983,2]
[387159987,1758599451158,-400.0,0.00019983,2]
[387159988,1758599451168,-400.0,0.00019983,2]
[387159989,1758599451178,-400.0,0.00019983,2]
[387159990,1758599451187,-681.6,0.00019983,2]
[387159991,1758599451197,-151.0,0.00019983,2]
[387159992,1758599451207,-151.0,0.00019983,2]
[387159993,1758599451216,-400.0,0.00019983,2]
[387159994,1758599451228,-551.01,0.00019983,2]
[387159995,1758599451238,-400.0,0.00019983,2]
[387159996,1758599451250,-562.71,0.00019983,2]
[387159997,1758599451260,-400.0,0.00019983,2]
[387159998,1758599451269,-400.0,0.00019983,2]
[387159999,1758599451279,-2433.58,0.00019983,2]
[387160000,1758599451289,-400.0,0.00019983,2]
[387160001,1758599451299,-910.114721,0.00019983,2]
[387160002,1758599451308,-910.114721,0.00019983,2]
[387160003,1758599451318,-910.114721,0.00019983,2]
[387160004,1758599451329,-910.114721,0.00019983,2]
[387160005,1758599451339,-151.0,0.00019983,2]
[387160006,1758599451351,-910.114721,0.00019983,2]
[387160007,1758599451360,-910.114721,0.00019983,2]
[387160008,1758599451369,-910.114721,0.00019983,2]
[387160009,1758599451379,-910.114721,0.00019983,2]
[387160010,1758599451388,-400.0,0.00019983,2]
[387160011,1758599451398,-400.0,0.00019983,2]
[387160012,1758599451408,-3698.27,0.00019983,2]
[387160013,1758599451417,-400.0,0.00019983,2]
[387160014,1758599451427,-154.769622,0.00019983,2]
[387160015,1758599451436,-400.0,0.00019983,2]
[387160016,1758599451445,-3927.52,0.00019983,2]
[387160017,1758599451455,-400.0,0.00019983,2]
[387160018,1758599451465,-400.0,0.00019983,2]
[387160019,1758599451474,-418.6,0.00019983,2]
[387160020,1758599451483,-1467.03,0.00019983,2]
[387160021,1758599451498,-830.82,0.00019983,2]
[387160022,1758599451514,-400.0,0.00019983,2]
[387160023,1758599451529,-151.0,0.00019983,2]
[387160024,1758599451540,-151.0,0.00019983,2]
[387160025,1758599451553,-400.0,0.00019983,2]
[387160026,1758599451566,-842.57,0.00019983,2]
[387160027,1758599451579,-400.0,0.00019983,2]
[387160028,1758599451593,-400.0,0.00019983,2]
[387160029,1758599451608,-400.0,0.00019983,2]
[387160030,1758599451621,-151.0,0.00019983,2]
[387160031,1758599451633,-400.0,0.00019983,2]
[387160032,1758599451643,-151.0,0.00019983,2]
[387160033,1758599451657,-400.0,0.00019983,2]
[387160034,1758599451670,-400.0,0.00019983,2]
[387160035,1758599451684,-400.0,0.00019983,2]
[387160036,1758599451698,-503.7,0.00019983,2]
[387160037,1758599451712,-452.55,0.00019983,2]
[387160038,1758599451725,-500.0,0.00019983,2]
[387160039,1758599451737,-1208.87,0.00019983,2]
[387160040,1758599451752,-431.47020103,0.00019983,2]
[387160041,1758599451764,-488.41,0.00019983,2]
[387160042,1758599451778,-500.0,0.00019983,2]
[387160043,1758599451791,-1331.96,0.00019983,2]
[387160044,1758599451804,-400.0,0.00019983,2]
[387160045,1758599451817,-151.0,0.00019983,2]
[387160046,1758599451833,-400.0,0.00019983,2]
[387160047,1758599451846,-400.0,0.00019983,2]
[387160048,1758599451859,-2079.04,0.00019983,2]
[387160049,1758599451872,-505.18742496,0.00019983,2]
[387160050,1758599451884,-400.0,0.00019983,2]
[387160051,1758599451897,-151.0,0.00019983,2]
[387160052,1758599451910,-151.0,0.00019983,2]
[387160053,1758599451926,-1336.69,0.00019983,2]
[387160054,1758599451937,-151.0,0.00019983,2]
[387160055,1758599451948,-400.0,0.00019983,2]
[387160056,1758599451959,-151.0,0.00019983,2]
[387160057,1758599451972,-400.0,0.00019983,2]
[387160058,1758599451986,-151.0,0.00019983,2]
[387160059,1758599451998,-156.94023,0.00019983,2]
[387160060,1758599452009,-163.880931,0.00019983,2]
[387160061,1758599452020,-254.611004,0.00019983,2]
[387160062,1758599452034,-500.0,0.00019983,2]
[387160063,1758599452046,-3097.42,0.00019983,2]
[387160064,1758599452058,-400.0,0.00019983,2]
[387160065,1758599452071,-207.660792,0.00019983,2]
[387160066,1758599452084,-403.27504388,0.00019984,2]
[387160067,1758599452096,-151.0,0.00019984,2]
[387160068,1758599452110,-408.59,0.00019984,2]
[387160069,1758599452122,-151.0,0.00019984,2]
[387160070,1758599452134,-151.0,0.00019984,2]
[387160071,1758599452147,-151.0,0.00019984,2]
[387160072,1758599452159,-151.0,0.00019984,2]
[387160073,1758599452172,-152.155793,0.00019984,2]
[387160074,1758599452187,-151.0,0.00019984,2]
[387160075,1758599452198,-151.0,0.00019984,2]
[387160076,1758599452211,-151.0,0.00019984,2]
[387160077,1758599452223,-153.17098,0.00019984,2]
[387160078,1758599452236,-151.0,0.00019984,2]
[387160079,1758599452247,-151.0,0.00019984,2]
[387160080,1758599452260,-151.0,0.00019984,2]
[387160081,1758599452272,-151.0,0.00019984,2]
[387160082,1758599452284,-151.0,0.00019984,2]
[387160083,1758599452296,-151.0,0.00019984,2]
[387160084,1758599452308,-400.0,0.00019985,2]
[387160085,1758599452321,-400.0,0.00019985,2]
[387160086,1758599452333,-226.27404736,0.00019985,2]
[387160087,1758599452346,-400.0,0.00019985,2]
[387160088,1758599452358,-400.0,0.00019985,2]
[387160089,1758599452370,-400.0,0.00019985,2]
[387160090,1758599452381,-400.0,0.00019985,2]
[387160091,1758599452393,-400.0,0.00019985,2]
[387160092,1758599452405,-400.0,0.00019985,2]
[387160093,1758599452417,-400.0,0.00019985,2]
[387160094,1758599452430,-400.0,0.00019985,2]
[387160095,1758599452442,-405.4970592,0.00019985,2]
[387160096,1758599452455,-400.0,0.00019985,2]
[387160097,1758599452467,-400.0,0.00019985,2]
[387160098,1758599452479,-400.0,0.00019985,2]
[387160099,1758599452495,-422.01586978,0.00019985,2]
[387160100,1758599452507,-400.0,0.00019985,2]
[387160101,1758599452519,-400.0,0.00019985,2]
[387160102,1758599452532,-400.0,0.00019985,2]
[387160103,1758599452544,-400.0,0.00019985,2]
[387160104,1758599452555,-500.0,0.00019985,2]
[387160105,1758599452567,-500.0,0.00019985,2]
[387160106,1758599452579,-235.036097,0.00019985,2]
[387160107,1758599452592,-516.01,0.00019985,2]
[387160108,1758599452604,-158.313507,0.00019985,2]
[387160109,1758599452617,-151.0,0.00019985,2]
[387160110,1758599452630,-500.0,0.00019985,2]
[387160111,1758599452642,-500.0,0.00019985,2]
[387160112,1758599452655,-293.45610032,0.00019985,2]
[387160113,1758599452668,-151.0,0.00019985,2]
[387160114,1758599452681,-500.0,0.00019985,2]
[387160115,1758599452693,-151.0,0.00019985,2]
[387160116,1758599452704,-288.830337,0.00019985,2]
[387160117,1758599452717,-255.077728,0.00019985,2]
[387160118,1758599452728,-151.0,0.00019985,2]
[387160119,1758599452740,-151.0,0.00019985,2]
[387160120,1758599452752,-404.26359278,0.00019985,2]
[387160121,1758599452764,-275.85956419,0.00019986,2]
[387160122,1758599452776,-151.0,0.00019987,2]
[387160123,1758599452788,-151.0,0.00019987,2]
[387160124,1758599452800,-5187.9207566,0.00019987,2]
[387160125,1758599452812,-322.6107,0.00019988,2]
[387160126,1758599452824,-572.84855101,0.00019988,2]
[387160127,1758599452838,-500.0,0.00019988,2]
[387160128,1758599452850,-206.34555292,0.00019988,2]
[387160129,1758599452862,-500.0,0.00019988,2]
[387160130,1758599452875,-500.0,0.00019988,2]
[387160131,1758599452887,-500.0,0.00019988,2]
[387160132,1758599452900,-500.0,0.00019988,2]
[387160133,1758599452911,-500.0,0.00019988,2]
[387160134,1758599452923,-500.0,0.00019988,2]
[387160135,1758599452934,-500.0,0.00019988,2]
[387160136,1758599452945,-500.0,0.00019988,2]
[387160137,1758599452957,-500.0,0.00019988,2]
[387160138,1758599452968,-214.65524301,0.00019988,2]
[387160139,1758599452980,-500.0,0.00019988,2]
[387160140,1758599452994,-500.0,0.00019988,2]
[387160141,1758599453005,-500.0,0.00019988,2]
[387160142,1758599453016,-500.0,0.00019988,2]
[387160143,1758599453029,-500.0,0.00019988,2]
[387160144,1758599453041,-500.0,0.00019988,2]
[387160145,1758599453053,-500.0,0.00019988,2]
[387160146,1758599453065,-500.0,0.00019988,2]
[387160147,1758599453077,-500.0,0.00019988,2]
[387160148,1758599453089,-500.0,0.00019988,2]
[387160149,1758599453101,-500.0,0.00019988,2]
[387160150,1758599453115,-500.0,0.00019988,2]
[387160151,1758599453127,-369.55637166,0.00019988,2]
[387160152,1758599453138,-187.45883303,0.00019988,2]
[387160153,1758599453150,-151.0,0.00019988,2]
[387160154,1758599453163,-151.0,0.00019988,2]
[387160155,1758599453175,-151.0,0.00019988,2]
[387160156,1758599453187,-151.0,0.00019988,2]
[387160157,1758599453199,-151.0,0.00019988,2]
[387160158,1758599453211,-163.2886171,0.00019988,2]
[387160159,1758599453223,-910.114721,0.00019988,2]
[387160160,1758599453234,-910.114721,0.00019988,2]
[387160161,1758599453245,-910.114721,0.00019988,2]
[387160162,1758599453257,-910.114721,0.00019988,2]
[387160163,1758599453269,-151.0,0.00019995,2]
[387160164,1758599453281,-160.54597561,0.00019997,2]
[387160165,1758599453292,-500.0,0.00019998,2]
[387160166,1758599453304,-400.0,0.00019998,2]
[387160167,1758599453315,-400.0,0.00019998,2]
[387160168,1758599453327,-400.0,0.00019998,2]
[387160169,1758599453339,-401.87725044,0.00019998,2]
[387160170,1758599453352,-400.0,0.00019998,2]
[387160171,1758599453364,-400.0,0.00019998,2]
[387160172,1758599453378,-400.0,0.00019998,2]
[387160173,1758599453391,-403.2361472,0.00019998,2]
[387160174,1758599453404,-238.88951969,0.00019998,2]
[387160175,1758599453416,-400.0,0.00019998,2]
[387160176,1758599453428,-400.0,0.00019998,2]
[387160177,1758599453441,-400.0,0.00019998,2]
[387160178,1758599453453,-400.0,0.00019998,2]
[387160179,1758599453465,-500.0,0.00019998,2]
[387160180,1758599453477,-400.0,0.00019998,2]
[387160181,1758599453491,-400.0,0.00019998,2]
[387160182,1758599453502,-400.0,0.00019998,2]
[387160183,1758599453514,-400.0,0.00019998,2]
[387160184,1758599453525,-400.0,0.00019998,2]
[387160185,1758599453538,-400.0,0.00019998,2]
[387160186,1758599453549,-400.0,0.00019998,2]
[387160187,1758599453560,-400.0,0.00019998,2]
[387160188,1758599453571,-400.0,0.00019998,2]
[387160189,1758599453582,-400.0,0.00019998,2]
[387160190,1758599453594,-500.0,0.00019998,2]
[387160191,1758599453605,-151.0,0.00019998,2]
[387160192,1758599453616,-151.0,0.00019998,2]
[387160193,1758599453627,-262.721944,0.00019998,2]
[387160194,1758599453637,-155.625278,0.00019998,2]
[387160195,1758599453648,-151.0,0.00019998,2]
[387160196,1758599453659,-154.55067,0.00019998,2]
[387160197,1758599453671,-151.0,0.00019998,2]
[387160198,1758599453684,-400.0,0.00019998,2]
[387160199,1758599453696,-1000.0,0.00019998,2]
[387160200,1758599453709,-400.0,0.00019998,2]
[387160201,1758599453720,-1282.24,0.00019998,2]
[387160202,1758599453732,-400.0,0.00019998,2]
[387160203,1758599453743,-556.35,0.00019998,2]
[387160204,1758599453755,-689.52,0.00019998,2]
[387160205,1758599453766,-610.52,0.00019998,2]
[387160206,1758599453778,-6754.1,0.00019998,2]
[387160207,1758599453789,-400.0,0.00019998,2]
[387160208,1758599453802,-660.13,0.00019998,2]
[387160209,1758599453814,-765.23,0.00019998,2]
[387160210,1758599453826,-678.41,0.00019998,2]
[387160211,1758599453837,-977.52,0.00019998,2]
[387160212,1758599453849,-1027.79,0.00019998,2]
[387160213,1758599453860,-910.114721,0.00019998,2]
[387160214,1758599453871,-910.114721,0.00019998,2]
[387160215,1758599453882,-910.114721,0.00019998,2]
[387160216,1758599453893,-910.114721,0.00019998,2]
[387160217,1758599453905,-400.0,0.00019998,2]
[387160218,1758599453916,-565.29,0.00019998,2]
[387160219,1758599453928,-725.67,0.00019998,2]
[387160220,1758599453940,-853.75,0.00019998,2]
[387160221,1758599453952,-480.0,0.00019998,2]
[387160222,1758599453963,-479.48,0.00019998,2]
[387160223,1758599453973,-400.0,0.00019998,2]
[387160224,1758599453985,-1285.27,0.00019998,2]
[387160225,1758599453996,-500.0,0.00019998,2]
[387160226,1758599454008,-727.04,0.00019998,2]
[387160227,1758599454018,-644.89,0.00019998,2]
[387160228,1758599454030,-400.0,0.00019998,2]
[387160229,1758599454042,-41809.79507332,0.00019998,2]
[387160230,1758599454055,-22552.5242193,0.00019999,2]
[387160231,1758599454067,-1077.4216162,0.00019999,2]
[387160232,1758599454422,-174.6016933,0.00019999,2]
[387160233,1758599454453,-151.0,0.00019999,2]
[387160234,1758599454471,-151.0,0.00019999,2]
[387160235,1758599454485,-151.0,0.00019999,2]
[387160236,1758599454495,-151.0,0.00019999,2]
[387160237,1758599454505,-151.0,0.00019999,2]
[387160238,1758599454514,-47811.0967483,0.00019999,2]
[387160239,1758599454524,-1010.8716648,0.00019999,2]
[387160240,1758599454534,-4128.0106761,0.00019999,2]
[387160241,1758599454544,-161.753628,0.00019999,2]
[387160242,1758599454553,-151.550384,0.00019999,2]
[387160243,1758599454563,-151.0,0.00019999,2]
[387160244,1758599454572,-150.0,0.00019999,2]
[387160245,1758599454582,-910.114721,0.00019999,2]
[387160246,1758599454591,-910.114721,0.00019999,2]
[387160247,1758599454600,-910.114721,0.00019999,2]
[387160248,1758599454610,-910.114712,0.00019999,2]
[387160249,1758599454619,-500.0,0.00019999,2]
[387160250,1758599454628,-500.0,0.00019999,2]
[387160251,1758599454637,-500.0,0.00019999,2]
[387160252,1758599454647,-500.0,0.00019999,2]
[387160253,1758599454655,-500.0,0.00019999,2]
[387160254,1758599454664,-500.0,0.00019999,2]
[387160255,1758599454675,-151.0,0.00019999,2]
[387160256,1758599454684,-151.0,0.00019999,2]
[387160257,1758599454694,-2000.0,0.0002,2]
[387160258,1758599454703,-66561.74953465,0.0002,2]
[387160259,1758599454712,-1000.0,0.0002,2]
[387160260,1758599454722,-1000.0,0.0002,2]
[387160261,1758599454731,-2000.0,0.0002,2]
[387160262,1758599454740,-200.0,0.0002,2]
[387160263,1758599454749,-151.0,0.0002,2]
[387160264,1758599454759,-151.0,0.0002,2]
[387160265,1758599454769,-480659.92368797,0.0002,2]
[387160266,1758599454779,-1000.0,0.0002,2]
[387160267,1758599454788,-1000.0,0.0002,2]
[387160268,1758599454797,-1000.0,0.0002,2]
[387160269,1758599454806,-151.0,0.0002,2]
[387160270,1758599454815,-151.0,0.0002,2]
[387160271,1758599454824,-1000.0,0.0002,2]
[387160272,1758599454833,-151.0,0.0002,2]
[387160273,1758599454842,-1000.0,0.0002,2]
[387160274,1758599454851,-417.638,0.0002,2]
[387160275,1758599454860,-2000.0,0.0002,2]
[387160276,1758599454869,-2000.0,0.0002,2]
[387160277,1758599454879,-2000.0,0.0002,2]
[387160278,1758599454888,-2000.0,0.0002,2]
[387160279,1758599454897,-2000.0,0.0002,2]
[387160280,1758599454906,-2000.0,0.0002,2]
[387160281,1758599454915,-1086.114,0.0002,2]
[387160282,1758599454924,-4000.0,0.0002,4]
[387160283,1758599454934,-500.0,0.0002,2]
[387160284,1758599454943,-500.0,0.0002,2]
[387160285,1758599454952,-500.0,0.0002,2]
[387160286,1758599454961,-500.0,0.0002,2]
[387160287,1758599454971,-500.0,0.0002,2]
[387160288,1758599454981,-500.0,0.0002,2]
[387160289,1758599454990,-500.0,0.0002,2]
[387160290,1758599455000,-500.0,0.0002,2]
[387160291,1758599455009,-500.0,0.0002,2]
[387160292,1758599455019,-500.0,0.0002,2]
[387160293,1758599455027,-500.0,0.0002,2]
[387160294,1758599455037,-500.0,0.0002,2]
[387160295,1758599455047,-500.0,0.0002,2]
[387160296,1758599455056,-500.0,0.0002,2]
[387160297,1758599455065,-500.0,0.0002,2]
[387160298,1758599455074,-500.0,0.0002,2]
[387160299,1758599455084,-500.0,0.0002,2]
[387160300,1758599455093,-500.0,0.0002,2]
[387160301,1758599455102,-500.0,0.0002,2]
[387160302,1758599455114,-500.0,0.0002,2]
[387160303,1758599455123,-500.0,0.0002,2]
[387160304,1758599455132,-500.0,0.0002,2]
[387160305,1758599455141,-500.0,0.0002,2]
[387160306,1758599455151,-500.0,0.0002,2]
[387160307,1758599455160,-500.0,0.0002,2]
[387160308,1758599455169,-500.0,0.0002,2]
[387160309,1758599455179,-500.0,0.0002,2]
[387160310,1758599455188,-500.0,0.0002,2]
[387160311,1758599455197,-500.0,0.0002,2]
[387160312,1758599455206,-500.0,0.0002,2]
[387160313,1758599455216,-528.50784931,0.0002,2]
[387160314,1758599455225,-8882.6885148,0.00020025,2]
[387160315,1758599455234,-6631.30538122,0.00020056,2]
[387160316,1758599455243,-9211.34798985,0.0002008,2]
[387160317,1758599455252,-151.0,0.00020098,2]
[387160318,1758599455262,-221.194748,0.00020098,2]
[387160319,1758599455271,-157.649918,0.00020098,2]
[387160320,1758599455281,-12301.60509355,0.00020127,2]
[387160321,1758599455290,-10589.88579283,0.00020127,2]
[387160322,1758599455300,-184.50226902,0.00020134,2]
[387160323,1758599455309,-780.246,0.00020134,2]
[387160324,1758599455318,-9552.16786547,0.00020135,2]
[387160325,1758599455328,-1442.26025681,0.00020139,2]
[387160326,1758599455337,-924.25647144,0.00020157,2]
[387160327,1758599455346,-409.89818584,0.00020157,2]
[387160328,1758599455356,-9905.5980765,0.0002019,2]
[387160329,1758599455366,-200.0,0.000202,2]
[387160330,1758599455375,-1000.0,0.000202,2]
[387160331,1758599455384,-1756.87424772,0.00020245,2]
[387160332,1758599455393,-8266.4794366,0.0002025,2]
[387160333,1758599455402,-228.231205,0.0002025,2]
[387160334,1758599455411,-151.0,0.0002025,2]
[387160335,1758599455420,-400.0,0.00020255,2]
[387160336,1758599455429,-400.0,0.00020255,2]
[387160337,1758599455439,-400.0,0.00020255,2]
[387160338,1758599455448,-1127.7,0.00020255,2]
[387160339,1758599455457,-400.0,0.00020255,2]
[387160340,1758599455466,-400.0,0.00020255,2]
[387160341,1758599455475,-886.69,0.00020255,2]
[387160342,1758599455484,-459.76,0.00020255,2]
[387160343,1758599455493,-400.0,0.00020255,2]
[387160344,1758599455502,-500.0,0.00020255,2]
[387160345,1758599455511,-400.0,0.00020255,2]
[387160346,1758599455520,-500.0,0.00020255,2]
[387160347,1758599455529,-406.89275278,0.00020255,2]
[387160348,1758599455538,-500.0,0.00020255,2]
[387160349,1758599455547,-414.26,0.00020255,2]
[387160350,1758599455557,-1941.69,0.00020255,2]
[387160351,1758599455567,-400.0,0.00020255,2]
[387160352,1758599455576,-400.0,0.00020255,2]
[387160353,1758599455585,-485.76,0.00020255,2]
[387160354,1758599455594,-400.0,0.00020255,2]
[387160355,1758599455603,-499.62,0.00020255,2]
[387160356,1758599455612,-400.0,0.00020255,2]
[387160357,1758599455622,-400.0,0.00020255,2]
[387160358,1758599455631,-583.75,0.00020255,2]
[387160359,1758599455641,-467.25,0.00020255,2]
[387160360,1758599455650,-400.0,0.00020255,2]
[387160361,1758599455659,-407.95048605,0.00020255,2]
[387160362,1758599455668,-152.99467,0.00020255,2]
[387160363,1758599455677,-400.0,0.00020255,2]
[387160364,1758599455685,-441.48,0.00020255,2]
[387160365,1758599455695,-400.0,0.00020255,2]
[387160366,1758599455704,-500.0,0.00020256,2]
[387160367,1758599455713,-500.0,0.00020256,2]
[387160368,1758599455723,-152.13274211,0.00020256,2]
[387160369,1758599455732,-150.0,0.00020256,2]
[387160370,1758599455741,-150.0,0.00020256,2]
[387160371,1758599455751,-500.0,0.00020256,2]
[387160372,1758599455760,-500.0,0.00020256,2]
[387160373,1758599455769,-151.35523822,0.00020256,2]
[387160374,1758599455778,-500.0,0.00020256,2]
[387160375,1758599455788,-150.0,0.00020256,2]
[387160376,1758599455799,-514.45720574,0.00020256,2]
[387160377,1758599455810,-150.0,0.00020256,2]
[387160378,1758599455820,-541.57107923,0.00020256,2]
[387160379,1758599455830,-152.83721032,0.00020256,2]
[387160380,1758599455841,-500.0,0.00020256,2]
[387160381,1758599455851,-150.0,0.00020256,2]
[387160382,1758599455862,-1574.0,0.00020256,2]
[387160383,1758599455872,-150.0,0.00020256,2]
[387160384,1758599455881,-150.0,0.00020256,2]
[387160385,1758599455890,-150.0,0.00020256,2]
[387160386,1758599455900,-151.93547695,0.00020256,2]
[387160387,1758599455910,-150.0,0.00020256,2]
[387160388,1758599455919,-150.0,0.00020256,2]
[387160389,1758599455928,-500.0,0.00020256,2]
[387160390,1758599455937,-151.4112883,0.00020256,2]
[387160391,1758599455947,-500.0,0.00020256,2]
[387160392,1758599455956,-500.0,0.00020256,2]
[387160393,1758599455965,-500.0,0.00020256,2]
[387160394,1758599455974,-486.0,0.00020256,2]
[387160395,1758599455983,-500.0,0.00020256,2]
[387160396,1758599455992,-2000.0,0.00020256,2]
[387160397,1758599456002,-400.0,0.00020256,2]
[387160398,1758599456011,-452.92,0.00020256,2]
[387160399,1758599456020,-400.0,0.00020256,2]
[387160400,1758599456030,-400.0,0.00020256,2]
[387160401,1758599456040,-404.26825369,0.00020256,2]
[387160402,1758599456049,-400.0,0.00020256,2]
[387160403,1758599456059,-400.0,0.00020256,2]
[387160404,1758599456069,-403.31663424,0.00020256,2]
[387160405,1758599456078,-400.0,0.00020256,2]
[387160406,1758599456087,-400.0,0.00020256,2]
[387160407,1758599456096,-403.5875277,0.00020256,2]
[387160408,1758599456106,-376.48697515,0.00020256,2]
[387160409,1758599456117,-400.0,0.00020256,2]
[387160410,1758599456128,-400.0,0.00020256,2]
[387160411,1758599456137,-400.0,0.00020256,2]
[387160412,1758599456147,-400.0,0.00020256,2]
[387160413,1758599456156,-400.0,0.00020256,2]
[387160414,1758599456166,-400.0,0.00020256,2]
[387160415,1758599456175,-151.0,0.00020256,2]
[387160416,1758599456184,-400.0,0.00020256,2]
[387160417,1758599456194,-500.0,0.00020256,2]
[387160418,1758599456203,-500.0,0.00020256,2]
[387160419,1758599456212,-500.0,0.00020256,2]
[387160420,1758599456222,-400.0,0.00020256,2]
[387160421,1758599456231,-400.0,0.00020256,2]
[387160422,1758599456241,-400.0,0.00020256,2]
[387160423,1758599456251,-400.0,0.00020256,2]
[387160424,1758599456260,-400.0,0.00020256,2]
[387160425,1758599456271,-591.69,0.00020256,2]
[387160426,1758599456280,-400.0,0.00020256,2]
[387160427,1758599456289,-403.83925861,0.00020256,2]
[387160428,1758599456299,-400.0,0.00020256,2]
[387160429,1758599456309,-400.0,0.00020256,2]
[387160430,1758599456318,-451.15,0.00020256,2]
[387160431,1758599456328,-400.0,0.00020256,2]
[387160432,1758599456337,-400.0,0.00020256,2]
[387160433,1758599456346,-648.42,0.00020256,2]
[387160434,1758599456356,-529.25,0.00020256,2]
[387160435,1758599456366,-400.0,0.00020256,2]
[387160436,1758599456375,-1000.0,0.00020256,2]
[387160437,1758599456384,-400.0,0.00020256,2]
[387160438,1758599456394,-400.18,0.00020256,2]
[387160439,1758599456403,-400.0,0.00020256,2]
[387160440,1758599456413,-502.92,0.00020256,2]
[387160441,1758599456423,-177.0283243,0.00020256,2]
[387160442,1758599456432,-648.28,0.00020256,2]
[387160443,1758599456441,-400.0,0.00020256,2]
[387160444,1758599456450,-400.0,0.00020256,2]
[387160445,1758599456459,-400.0,0.00020256,2]
[387160446,1758599456469,-407.85,0.00020256,2]
[387160447,1758599456479,-400.0,0.00020256,2]
[387160448,1758599456488,-400.0,0.00020256,2]
[387160449,1758599456497,-506.63,0.00020256,2]
[387160450,1758599456506,-400.0,0.00020256,2]
[387160451,1758599456516,-400.0,0.00020256,2]
[387160452,1758599456526,-400.0,0.00020256,2]
[387160453,1758599456535,-400.0,0.00020256,2]
[387160454,1758599456544,-151.0,0.00020256,2]
[387160455,1758599456554,-572.48,0.00020256,2]
[387160456,1758599456563,-400.0,0.00020256,2]
[387160457,1758599456573,-400.0,0.00020256,2]
[387160458,1758599456583,-531.14,0.00020256,2]
[387160459,1758599456592,-400.0,0.00020256,2]
[387160460,1758599456601,-400.0,0.00020256,2]
[387160461,1758599456611,-400.0,0.00020256,2]
[387160462,1758599456621,-400.0,0.00020256,2]
[387160463,1758599456631,-400.0,0.00020256,2]
[387160464,1758599456641,-481.06,0.00020256,2]
[387160465,1758599456651,-403.00746878,0.00020256,2]
[387160466,1758599456662,-400.0,0.00020256,2]
[387160467,1758599456671,-400.0,0.00020256,2]
[387160468,1758599456683,-400.0,0.00020256,2]
[387160469,1758599456693,-411.76963722,0.00020256,2]
[387160470,1758599456703,-400.0,0.00020256,2]
[387160471,1758599456713,-400.0,0.00020256,2]
[387160472,1758599456724,-400.0,0.00020256,2]
[387160473,1758599456734,-413.41726363,0.00020256,2]
[387160474,1758599456743,-400.0,0.00020256,2]
[387160475,1758599456752,-495.86,0.00020256,2]
[387160476,1758599456762,-400.0,0.00020256,2]
[387160477,1758599456771,-538.36,0.00020256,2]
[387160478,1758599456780,-400.0,0.00020256,2]
[387160479,1758599456790,-400.0,0.00020256,2]